[Event "4th ESNA Championship 2022"]
[Site "Vaduz"]
[Date "2022.09.25"]
[Round "1.1"]
[White "Berend, Fred"]
[Black "Mizzi, Jack"]
[Result "0-1"]
[ECO "B13"]
[WhiteElo "2300"]
[BlackElo "1863"]
[Annotator "TA"]
[PlyCount "71"]
[EventDate "2022.09.25"]
[EventCountry "LIE"]
[SourceTitle "playchess.com"]
[Source "ChessBase"]
[SourceQuality "1"]
[TimeControl "5400+30"]

{[%evp 13,71,9,18,4,13,-12,0,4,40,39,39,32,38,40,47,40,42,25,39,43,45,40,55,52,60,58,107,107,100,-14,0,-9,0,0,0,0,0,0,0,0,0,0,0,0,0,0,-8,-20,-30,-151,-22,-60,-17,-21,-10,-995,-986,-971,-971,-5400]} 1. e4 {[%emt 0:00:05]} c6 {[%emt 0:00:13]} 2. d4 {[%emt 0:00:05]} d5 {[%emt 0:00:10]} 3. exd5 {[%emt 0:00:05]} cxd5 {[%emt 0:00:11]} 4. Bd3 {[%emt 0:00:04]} Nc6 {[%emt 0:00:31]} 5. c3 {[%emt 0:00:08]} Qc7 {[%emt 0:01:00]} 6. h3 {[%emt 0:01:33]} Nf6 {[%emt 0:02:21]} 7. Nf3 {[%emt 0:00:24]} g6 {[%emt 0:00:30]} 8. Na3 {[%emt 0:00:30] 8.Qc2 gains popularity. B13: Caro-Kann: Exchange Variation and Panov-Botvinnik Attack.} Bf5 {[%emt 0:00:30]} 9. Be2 {[%emt 0:00:30] [#]} Bg7 $146 {[%emt 0:00:30]} ({Predecessor:} 9... a6 10. Nc2 Bg7 11. Ne3 Bd7 12. O-O O-O 13. Re1 e6 14. Bd3 b5 15. Ne5 b4 {½-½ (27) Kasimdzhanov,R (2683)-Grigoriants,S (2561) Riadh 2017}) 10. Nc2 {[%emt 0:00:30] The position is equal.} Bxc2 {[%emt 0:00:30]} 11. Qxc2 {[%emt 0:00:30]} O-O {[%emt 0:00:30]} 12. Be3 {[%emt 0:00:30]} Rac8 {[%emt 0:00:30]} 13. O-O {[%emt 0:00:30]} e6 {[%emt 0:00:30]} 14. Rfe1 {[%emt 0:00:30]} Ne4 {[%emt 0:00:30]} 15. Qc1 {[%emt 0:00:30]} Qb6 {[%emt 0:00:30]} 16. Bd3 {[%emt 0:00:30]} f5 {[%emt 0:00:30][%cal Of5f4]} 17. Re2 {[%emt 0:00:30]} a5 {[%emt 0:00:30][%cal Og6g5]} 18. Qd1 {[%emt 0:00:30]} Qc7 {[%emt 1:10:28]} 19. g3 {[%emt 0:59:28]} e5 {[%emt 0:08:29]} (19... Bf6 $14) 20. dxe5 $16 {[%emt 0:01:06]} Nxe5 {[%emt 0:00:35]} 21. Nd4 {[%emt 0:01:28]} ({White should try} 21. Nxe5 $16 Qxe5 22. Bf4) 21... Qf7 $11 {[%emt 0:01:37]} 22. Kg2 {[%emt 0:01:54]} Nc4 {[%emt 0:02:09]} 23. Nf3 {[%emt 0:12:53]} b5 {[%emt 0:02:21][%cal Bb7b5,Bb5b4][%mdl 32]} 24. Bd4 {[%emt 0:02:17]} b4 {[%emt 0:02:16]} 25. Bxg7 {[%emt 0:03:09]} Qxg7 {[%emt 0:01:19]} 26. Bxc4 {[%emt 0:07:23]} dxc4 {[%emt 0:00:08]} 27. Qd5+ {[%emt 0:00:32]} Kh8 {[%emt 0:00:58]} 28. Qxa5 {[%emt 0:01:47]} bxc3 {[%emt 0:00:20]} 29. bxc3 {[%emt 0:00:06]} Nxc3 {[%emt 0:00:23]} 30. Re5 {[%emt 0:01:05]} Ne4 {[%emt 0:00:24]} 31. Rc1 {[%emt 0:02:06]} (31. a4 $11) 31... c3 {[%emt 0:00:36]} (31... Ra8 $17 32. Qb4 Rxa2) 32. Qa3 {[%emt 0:02:29]} Ra8 {[%emt 0:00:36]} (32... Rfd8 $5 {[%cal Rg7b7]} 33. Rc2 Rc7 $17) 33. Ra5 {[%emt 0:00:20]} Qb7 {[%emt 0:00:48]} 34. Kg1 $2 {[%emt 0:00:40][%mdl 8192] [#]} (34. Rb1 $11 Qc8 35. Rxa8 Qxa8 36. Qe7) 34... Qb6 $1 $19 {[%emt 0:00:20][%csl LRa5,LRf2,LRg3]} 35. Rc2 {[%emt 0:00:49]} Qxa5 {[%emt 0:00:10]} 36. Kg2 {[%emt 0:01:04] Weighted Error Value: White=0.32/Black=0.16 (very precise)} 0-1

[Event "4th ESNA Championship 2022"]
[Site "Vaduz"]
[Date "2022.09.25"]
[Round "1.2"]
[White "Henderson de La Fuente, Lance"]
[Black "Frick, Renato"]
[Result "0-1"]
[ECO "A45"]
[WhiteElo "2504"]
[BlackElo "1875"]
[Annotator "TA"]
[PlyCount "96"]
[EventDate "2022.09.25"]
[EventCountry "LIE"]
[SourceTitle "playchess.com"]
[Source "ChessBase"]
[SourceQuality "1"]
[TimeControl "5400+30"]

{[%evp 14,96,10,11,20,21,20,12,14,-9,39,0,22,0,86,93,132,45,87,60,60,60,65,64,58,64,65,68,41,18,68,57,50,31,40,9,10,12,28,17,42,3,22,10,35,-61,-44,-58,-61,-49,-65,-30,14,29,19,0,0,-51,0,-86,-85,-89,-65,-70,-66,-59,-57,-121,-128,-130,-133,-159,-145,-175,-168,-214,-223,-222,-222,-254,-237,-246,-215,-566,-549]} 1. d4 {[%emt 0:00:05]} Nf6 {[%emt 0:00:21]} 2. Bg5 {[%emt 0:00:19]} Ne4 {[%emt 0:00:50]} 3. Bf4 {[%emt 0:00:32]} c5 {[%emt 0:00:47]} 4. f3 {[%emt 0:02:22]} Qa5+ {[%emt 0:00:36]} 5. c3 {[%emt 0:00:40]} Nf6 {[%emt 0:00:40]} 6. Nd2 {[%emt 0:02:48]} cxd4 {[%emt 0:00:34]} 7. Nb3 {[%emt 0:00:15]} Qb6 {[%emt 0:01:40]} 8. Qxd4 {[%emt 0:01:58]} d6 {[%emt 0:05:27] A45: Trompowsky Attack.} 9. Qxb6 {[%emt 0:16:26]} axb6 {[%emt 0:00:02]} 10. e4 {[%emt 0:01:05]} e5 {[%emt 0:05:22] The position is equal.} 11. Be3 {[%emt 0:02:09]} Be6 {[%emt 0:01:20] Against Bc4} (11... d5 $11 {is superior.}) 12. Nd2 {[%emt 0:05:43]} Nbd7 {[%emt 0:02:53]} 13. Bb5 {[%emt 0:05:51]} Kd8 {[%emt 0:19:55]} (13... d5 $1 $11) 14. c4 $16 {[%emt 0:13:48] [#]} Kc7 $146 {[%emt 0:09:37]} ({Predecessor:} 14... h5 15. Ne2 g6 16. Bxd7 Nxd7 17. Nc3 Bh6 18. Bxh6 Rxh6 19. h4 Ke7 20. b3 f5 {1-0 (48) Palchun,G (2451)-Bykov,O (2383) St Petersburg 2018}) 15. b4 {[%emt 0:06:05]} ({White should try} 15. Ne2 $16) 15... Be7 {[%emt 0:05:39]} 16. Ne2 {[%emt 0:02:23][%cal Bg1e2,Be2c1,Bc1d3][%mdl 32]} Ra3 {[%emt 0:07:06] Against Nc3} 17. Kf2 {[%emt 0:16:52] Nb1 is the strong threat.} Rha8 {[%emt 0:03:18]} 18. Nc1 $1 {[%emt 0:02:35]} Rc8 {[%emt 0:13:09]} 19. Nb1 {[%emt 0:01:03]} Raa8 {[%emt 0:00:11]} 20. a4 {[%emt 0:00:38]} Kd8 {[%emt 0:04:56]} 21. Na3 {[%emt 0:01:52]} h6 {[%emt 0:01:52]} (21... Ne8 $11) 22. Nd3 {[%emt 0:03:04]} Ne8 {[%emt 0:02:51]} 23. Nb2 {[%emt 0:01:28]} Bg5 {[%emt 0:03:17]} 24. Rhd1 {[%emt 0:01:57]} Bxe3+ {[%emt 0:00:42]} 25. Kxe3 {[%emt 0:00:06]} Ke7 {[%emt 0:00:22]} 26. Rd2 {[%emt 0:01:02]} Rd8 {[%emt 0:04:10]} 27. Rad1 {[%emt 0:00:15]} (27. Bxd7 $5 Rxd7 28. g4 $11) 27... Rac8 {[%emt 0:00:17]} 28. Nc2 {[%emt 0:03:05]} Ndf6 {[%emt 0:01:46]} 29. Kd3 {[%emt 0:03:57]} (29. Kf2 $14) 29... d5 $1 $15 {[%emt 0:02:23]} 30. cxd5 {[%emt 0:01:49] [#]} Nxd5 $1 {[%emt 0:00:10]} 31. exd5 {[%emt 0:00:33]} Bf5+ {[%emt 0:00:01]} 32. Ke3 {[%emt 0:00:17] aiming for Nc4.} Rxc2 {[%emt 0:00:56]} 33. Rxc2 {[%emt 0:00:52]} Bxc2 {[%emt 0:00:01]} 34. Rc1 {[%emt 0:00:27]} Bb3 {[%emt 0:01:15]} 35. Nc4 {[%emt 0:01:45]} (35. Bxe8 $11 Kxe8 36. Nc4) 35... Bxc4 {[%emt 0:00:56]} (35... Rc8 $1 $15 36. Kd2 Bxc4 37. Bxc4 (37. Rxc4 Nc7 $15) 37... Kd6) 36. Bxc4 {[%emt 0:00:34][%mdl 4096] Endgame KRB-KRN} (36. Rxc4 $11 Kd6 37. Bxe8 Rxe8 38. a5) 36... Rc8 $17 {[%emt 0:01:23]} 37. Rc2 {[%emt 0:00:41]} Nf6 {[%emt 0:00:21] Hoping for ...Nxd5+.} 38. d6+ {[%emt 0:00:21]} Kxd6 {[%emt 0:00:11]} 39. Rd2+ {[%emt 0:00:02]} Ke7 {[%emt 0:02:43]} 40. Bb5 {[%emt 0:01:23]} ({Better is} 40. Kd3 $15) 40... Rc3+ {[%emt 0:00:00]} 41. Kf2 {[%emt 0:00:27]} e4 {[%emt 0:00:00] [#] And now ...e3+ would win.} 42. Re2 {[%emt 0:00:15] Inhibits e3+.} Kd6 {[%emt 0:00:00]} 43. fxe4 {[%emt 0:01:02] Black must now prevent e5+.} Ke5 {[%emt 0:00:15]} 44. h3 {[%emt 0:00:00]} (44. g3 $142) 44... Nxe4+ $19 {[%emt 0:00:00]} 45. Kg1 {[%emt 0:00:00]} f5 {[%emt 0:00:00][%cal Bf7f5,Bf5f4][%mdl 32]} 46. Rb2 {[%emt 0:00:00]} Rc1+ {[%emt 0:00:00]} 47. Kh2 {[%emt 0:00:00]} f4 {[%emt 0:00:00] ( -> ...Ng3)} 48. Re2 $2 {[%emt 0:00:00]} (48. Bd3 {was the crucial defense.} Nc3 49. h4) 48... Kd4 {[%emt 0:00:00] Weighted Error Value: White=0.31/Black=0.15 (very precise)} 0-1

[Event "4th ESNA Championship 2022"]
[Site "Vaduz"]
[Date "2022.09.25"]
[Round "1.3"]
[White "Carpenter, Paul A"]
[Black "Apol, Luitjen Akselsson"]
[Result "1-0"]
[ECO "D53"]
[WhiteElo "1986"]
[BlackElo "2113"]
[Annotator "RC"]
[PlyCount "47"]
[EventDate "2022.09.25"]
[EventCountry "LIE"]
[SourceTitle "playchess.com"]
[Source "ChessBase"]
[SourceQuality "1"]
[TimeControl "5400+30"]

1. d4 {[%emt 0:00:10]} Nf6 {[%emt 0:00:07]} 2. Nf3 {[%emt 0:00:19]} d5 {[%emt 0:00:11]} 3. c4 {[%emt 0:00:19]} e6 {[%emt 0:00:07]} 4. Bg5 {[%emt 0:01:06]} Be7 {[%emt 0:01:10]} 5. Nc3 {[%emt 0:00:50]} c6 {[%emt 0:02:31]} 6. e3 {[%emt 0:01:03]} Nbd7 {[%emt 0:01:23]} 7. Bd3 {[%emt 0:04:25]} dxc4 {[%emt 0:01:42]} 8. Bxc4 {[%emt 0:00:14]} b5 {[%emt 0:00:11]} 9. Bd3 {[%emt 0:03:02]} Bb7 {[%emt 0:00:32]} 10. O-O {[%emt 0:04:07]} a6 {[%emt 0:05:07]} 11. a4 {[%emt 0:02:49]} h6 {[%emt 0:08:15]} 12. Bxf6 {[%emt 0:01:30]} Nxf6 {[%emt 0:03:48]} 13. Rc1 {[%emt 0:03:13]} Rc8 {[%emt 0:04:14]} 14. Ne4 {[%emt 0:06:07]} Nxe4 {[%emt 0:06:03]} 15. Bxe4 {[%emt 0:00:06]} Qb6 {[%emt 0:00:26]} 16. Ne5 {[%emt 0:00:49]} Bd6 {[%emt 0:09:09]} 17. Nd3 {[%emt 0:01:38]} O-O {[%emt 0:05:30]} 18. b4 {[%emt 0:02:59]} f5 {[%emt 0:02:37]} 19. Bf3 {[%emt 0:00:34]} f4 {[%emt 0:17:26]} 20. Qb3 {[%emt 0:02:44]} Rce8 {[%emt 0:01:42]} 21. a5 {[%emt 0:01:59]} Qc7 {[%emt 0:01:17]} 22. e4 {[%emt 0:01:17]} Qd7 {[%emt 0:02:39]} 23. Rfd1 {[%emt 0:03:51]} Rc8 {[%emt 0:08:01]} 24. e5 {[%emt 0:01:39]} 1-0

[Event "4th ESNA Championship 2022"]
[Site "Vaduz"]
[Date "2022.09.25"]
[Round "1.4"]
[White "Efimov, Igor"]
[Black "Volpinari, Danilo"]
[Result "0-1"]
[ECO "C47"]
[WhiteElo "2360"]
[BlackElo "1929"]
[Annotator "TA"]
[PlyCount "96"]
[EventDate "2022.09.25"]
[EventCountry "LIE"]
[SourceTitle "playchess.com"]
[Source "ChessBase"]
[SourceQuality "1"]
[TimeControl "5400+30"]

{[%evp 10,96,0,0,0,2,3,-17,-12,-13,-10,-6,-2,-15,-8,-60,-43,-71,-37,-35,-39,-104,-103,-106,-91,-110,-105,-154,-89,-89,-89,-89,-89,-89,-89,-89,-89,-89,-89,-139,-80,-60,-81,-84,-66,-129,-123,-260,-243,-288,-261,-251,-220,-354,-343,-371,-363,-367,-116,-105,0,-327,0,-511,-498,-513,-481,-505,-335,-379,0,-448,-517,-472,-468,-450,-430,-474,-482,-562,-527,-12836,-12836,-12837,-12836,-29977,-29978,-29978,-29979]} 1. e4 {[%emt 0:00:03]} e5 {[%emt 0:00:58]} 2. Nc3 {[%emt 0:00:10]} Nf6 {[%emt 0:04:12]} 3. Nf3 {[%emt 0:00:08]} Nc6 {[%emt 0:00:06]} 4. d4 {[%emt 0:00:10]} Bb4 {[%emt 0:00:52]} 5. d5 {[%emt 0:10:04]} Ne7 {[%emt 0:02:44]} 6. Bd3 {[%emt 0:01:01]} Bxc3+ {[%emt 0:02:31] C47: Scotch Four Knights and Four Knights with 4 g3.} 7. bxc3 {[%emt 0:00:02]} d6 {[%emt 0:00:09]} 8. h3 {[%emt 0:03:23]} O-O {[%emt 0:05:03] The position is equal.} 9. O-O {[%emt 0:01:04] [#]} h6 $146 {[%emt 0:06:41]} ({Predecessor:} 9... Ng6 10. Nh2 h6 11. Ng4 Nxg4 12. hxg4 Qh4 13. f3 Bd7 14. Be3 b6 15. Qd2 a5 {1-0 (50) Gadimbayli,A (2460)-Shukh,N (2467) Chess.com INT 2020}) 10. c4 {[%emt 0:08:28]} b6 {[%emt 0:01:46]} 11. a4 {[%emt 0:01:24]} a5 {[%emt 0:00:52]} 12. Nh2 {[%emt 0:05:30]} (12. Nd2 $11) 12... Ng6 {[%emt 0:07:42]} 13. Ng4 {[%emt 0:01:58]} Nf4 {[%emt 0:14:26]} 14. Nxf6+ {[%emt 0:08:47]} Qxf6 {[%emt 0:00:46]} 15. Bxf4 {[%emt 0:04:32]} ({Better is} 15. Re1 $15) 15... exf4 $17 {[%emt 0:01:35]} 16. Qf3 {[%emt 0:03:27]} Re8 {[%emt 0:06:20]} 17. Kh2 {[%emt 0:04:16]} Qh4 {[%emt 0:02:47]} 18. g4 {[%emt 0:02:39]} (18. c5 $142) 18... Re5 {[%emt 0:11:23]} (18... Qf6 $142 19. Be2 Bd7) 19. Qxf4 {[%emt 0:02:14] [#]} Rh5 $1 {[%emt 0:04:06][%mdl 64] Pin} 20. Qg3 {[%emt 0:00:11] [#]} Qxg4 {[%emt 0:01:39]} 21. Qxg4 {[%emt 0:01:06]} Bxg4 {[%emt 0:00:03]} 22. Kg3 {[%emt 0:01:39]} Bd7 {[%emt 0:00:56]} (22... Bxh3 $2 23. Rh1 $18) 23. h4 {[%emt 0:01:20]} g5 {[%emt 0:06:08] Black is more active.} 24. Rh1 {[%emt 0:00:41]} (24. hxg5 $142 hxg5 25. f4) 24... Re8 {[%emt 0:05:14]} (24... Rxh4 $142 {Strongly threatening ...Rg4+.} 25. Rxh4 gxh4+ 26. Kxh4 Kg7) 25. hxg5 {[%emt 0:04:36]} Rxh1 {[%emt 0:00:35]} 26. Rxh1 {[%emt 0:00:02]} hxg5 {[%emt 0:00:07][%mdl 4096] Endgame KRB-KRB} 27. Ra1 {[%emt 0:01:05]} ({White should play} 27. f4 $15) 27... Kg7 {[%emt 0:02:02]} 28. c3 {[%emt 0:00:32]} (28. f4 $17 {was worth a try.}) 28... Rh8 $19 {[%emt 0:02:59]} 29. Kg2 {[%emt 0:06:04]} Rh3 {[%emt 0:03:18]} 30. f3 {[%emt 0:00:07]} Kf6 {[%emt 0:04:35]} 31. Bc2 {[%emt 0:01:24]} (31. c5 {was necessary.} bxc5 32. Bb5) 31... Ke5 {[%emt 0:00:45]} 32. Re1 {[%emt 0:03:36]} Kf4 {[%emt 0:02:20]} 33. Bd1 {[%emt 0:00:02]} Rg3+ $2 {[%emt 0:00:43]} (33... Rh4 $19 {...f6 is the strong threat.} 34. Bc2 Bh3+ 35. Kf2 Bd7) 34. Kh2 $17 {[%emt 0:00:54]} Rh3+ $2 {[%emt 0:00:20]} (34... Bc8 $17 35. e5 Rh3+ 36. Kg2 Bf5) 35. Kg2 $19 {[%emt 0:00:02]} Ke5 $2 {[%emt 0:00:25]} (35... Rh4 $19 36. Bc2 Bh3+ 37. Kf2 g4) 36. Re3 $2 {[%emt 0:01:29][%mdl 8192]} (36. Bc2 $11 {and White stays safe.}) 36... g4 {[%emt 0:00:37] And now ...Kf4 would win.} 37. Re1 {[%emt 0:01:15]} gxf3+ {[%emt 0:00:33]} 38. Bxf3 {[%emt 0:00:02]} Rh4 {[%emt 0:00:31]} 39. Kg3 {[%emt 0:00:43]} Rh3+ {[%emt 0:00:26]} 40. Kg2 {[%emt 0:00:15]} Kf4 {[%emt 0:00:37]} 41. Bd1 {[%emt 0:02:55]} Rg3+ {[%emt 0:00:00]} 42. Kh2 {[%emt 0:00:00] Black must now prevent Rf1+.} Rg7 {[%emt 0:00:00]} ({Not} 42... Rh3+ $2 43. Kg2 Rxc3 44. Rf1+ Kxe4 45. Rxf7 Bh3+ 46. Kh2 $19) 43. Kh1 {[%emt 0:00:00]} f6 {[%emt 0:00:00]} 44. Kh2 {[%emt 0:00:00]} Bg4 {[%emt 0:00:00]} 45. Bc2 {[%emt 0:00:00]} Rh7+ {[%emt 0:00:00]} 46. Kg1 {[%emt 0:00:00]} Bf3 {[%emt 0:00:00] ( -> ...Kg3)} 47. Rf1 {[%emt 0:00:00]} Rh1+ {[%emt 0:00:00]} 48. Kf2 {[%emt 0:00:00]} Rh2+ {[%emt 0:00:00] Weighted Error Value: White=0.66/Black=0.37} 0-1

[Event "4th ESNA Championship 2022"]
[Site "Vaduz"]
[Date "2022.09.25"]
[Round "1.5"]
[White "Kirby, Peter J."]
[Black "Michaelides, Konstantinos"]
[Result "1-0"]
[ECO "D11"]
[WhiteElo "2011"]
[BlackElo "2304"]
[Annotator "TA"]
[PlyCount "59"]
[EventDate "2022.09.25"]
[EventCountry "LIE"]
[SourceTitle "playchess.com"]
[Source "ChessBase"]
[SourceQuality "1"]
[TimeControl "5400+30"]

{[%evp 13,59,21,20,28,30,29,20,0,60,0,16,-1,33,2,2,-8,73,57,89,76,83,68,65,69,61,45,39,22,89,68,113,114,122,102,175,180,288,312,607,605,621,598,577,578,809,734,712,636]} 1. d4 {[%emt 0:00:21]} d5 {[%emt 0:00:32]} 2. c4 {[%emt 0:00:15]} c6 {[%emt 0:00:27]} 3. Nf3 {[%emt 0:02:05]} Nf6 {[%emt 0:00:39]} 4. e3 {[%emt 0:02:31]} Bg4 {[%emt 0:05:57]} 5. Nc3 {[%emt 0:04:20]} e6 {[%emt 0:03:39]} 6. h3 {[%emt 0:00:19]} Bh5 {[%emt 0:01:23]} 7. g4 {[%emt 0:07:19]} Bg6 {[%emt 0:00:23]} 8. Nh4 {[%emt 0:00:13] D11: Slav Defence: 3 Nf3 sidelines and 3...Nf6 4 e3 Bg4.} Nbd7 {[%emt 0:04:53]} 9. Nxg6 {[%emt 0:04:12]} hxg6 {[%emt 0:00:09]} 10. Bd2 {[%emt 0:04:33] The position is equal.} Bd6 {[%emt 0:06:50]} (10... Bb4 $11) 11. Qf3 {[%emt 0:02:37]} (11. g5 $1 $14) 11... Qe7 {[%emt 0:07:01] [#]} 12. Qg2 $146 {[%emt 0:07:19]} ({Predecessor:} 12. g5 Nh5 13. h4 O-O 14. O-O-O dxc4 15. Bxc4 e5 16. d5 Nb6 17. Bb3 cxd5 18. Nxd5 Nxd5 19. Bxd5 {1-0 (32) Volodin,A (2459)-Nadjezhdin,D (2184) St Petersburg 2018}) 12... a6 {[%emt 0:08:34]} 13. f4 {[%emt 0:07:34]} Bb4 {[%emt 0:22:29]} 14. Bd3 {[%emt 0:00:52]} Nb6 {[%emt 0:07:30]} (14... dxc4 $11 15. Bxc4 Nb6) 15. c5 {[%emt 0:11:30]} Nbd7 {[%emt 0:02:35]} 16. g5 {[%emt 0:13:06]} Ng8 {[%emt 0:03:26][%cal Bf6g8,Bg8e7,Be7f5][%mdl 32]} 17. Kf2 {[%emt 0:06:43][%cal Oc3d5]} Qd8 {[%emt 0:00:47]} 18. a3 {[%emt 0:01:09]} Bxc3 {[%emt 0:10:12]} 19. bxc3 {[%emt 0:00:28]} Ne7 {[%emt 0:00:22]} 20. Rab1 {[%emt 0:01:51]} Ra7 {[%emt 0:02:51]} (20... b6 $11) 21. Rb2 {[%emt 0:03:41] White has more active pieces. The black rooks are badly placed.} Nf5 {[%emt 0:00:59]} 22. c4 {[%emt 0:00:51]} Qc7 {[%emt 0:05:32]} 23. cxd5 {[%emt 0:00:50]} exd5 {[%emt 0:01:44]} (23... cxd5 $16 24. Rhb1 Ke7) 24. h4 $18 {[%emt 0:00:15][%cal Bh3h4,Bh4h5][%mdl 32]} Nf8 {[%emt 0:02:26]} (24... Ne7 {is a better defense.} 25. Qf3 Rh5) 25. h5 {[%emt 0:00:17]} Ne6 $2 {[%emt 0:00:46] [#]} (25... a5 26. Rbb1 Kd8) 26. hxg6 {[%emt 0:06:19] White is clearly winning.} Rxh1 {[%emt 0:00:07]} 27. gxf7+ {[%emt 0:00:44]} ({Less strong is} 27. Qxh1 fxg6 28. Rb1 Qf7 $18) (27. Bxf5 Rh8 $14) 27... Qxf7 {[%emt 0:00:09]} 28. Qxh1 {[%emt 0:00:04]} Nxg5 {[%emt 0:01:32]} 29. Bxf5 {[%emt 0:00:15]} Qxf5 {[%emt 0:00:25]} 30. Qh5+ {[%emt 0:00:01] Weighted Error Value: White=0.12 (very precise) /Black=0.53} 1-0

[Event "4th ESNA Championship 2022"]
[Site "Vaduz"]
[Date "2022.09.26"]
[Round "2.1"]
[White "Mizzi, Jack"]
[Black "Michaelides, Konstantinos"]
[Result "1-0"]
[ECO "E11"]
[WhiteElo "1863"]
[BlackElo "2304"]
[Annotator "TA"]
[PlyCount "79"]
[EventDate "2022.09.25"]
[EventCountry "LIE"]
[SourceTitle "playchess.com"]
[Source "ChessBase"]
[SourceQuality "1"]
[TimeControl "5400+30"]

{[%evp 9,79,12,35,29,31,22,22,-2,30,22,31,29,45,18,29,22,26,13,18,18,33,26,20,0,19,0,0,0,0,-6,0,-13,6,6,7,4,37,17,112,82,90,0,56,33,218,209,238,210,307,114,110,110,393,379,362,353,621,621,779,766,706,674,839,811,29980,29981,29981,29982,29994,29995,29995,29996]} 1. d4 {[%emt 0:00:05]} Nf6 {[%emt 0:00:30]} 2. c4 {[%emt 0:00:17]} e6 {[%emt 0:00:15]} 3. Nf3 {[%emt 0:00:14]} Bb4+ {[%emt 0:01:12]} 4. Bd2 {[%emt 0:00:34]} Qe7 {[%emt 0:03:04]} 5. e3 {[%emt 0:03:45]} a5 {[%emt 0:03:17]} 6. Bd3 {[%emt 0:01:38] E11: Bogo-Indian.} Bxd2+ {[%emt 0:00:36]} 7. Qxd2 {[%emt 0:06:07]} d6 {[%emt 0:01:29]} 8. e4 {[%emt 0:07:24] [#] The position is equal.} Nc6 $146 {[%emt 0:06:08]} ({Predecessor:} 8... e5 9. O-O Bg4 10. Qe3 Bxf3 11. Qxf3 Nc6 12. d5 Nd4 13. Qe3 O-O 14. Nc3 c6 15. dxc6 bxc6 {1-0 (38) Bertrand,F (2200)-Fioramonti,H (2370) France 1998}) 9. Nc3 {[%emt 0:04:19]} e5 {[%emt 0:08:51]} 10. dxe5 {[%emt 0:04:43]} (10. Nd5 {is more complex.} Qd8 11. Qc3 exd4 12. Nxd4 Nb4 13. O-O) 10... Nxe5 {[%emt 0:06:19]} 11. Nxe5 {[%emt 0:01:25]} dxe5 {[%emt 0:05:57]} 12. Nd5 {[%emt 0:04:07]} Nxd5 {[%emt 0:02:28]} 13. cxd5 {[%emt 0:00:21]} (13. exd5 {is interesting.} e4 14. O-O-O exd3 15. Rhe1) 13... O-O {[%emt 0:01:00]} 14. O-O {[%emt 0:02:00]} Bd7 {[%emt 0:01:36]} 15. Rac1 {[%emt 0:04:37]} c6 {[%emt 0:04:51]} 16. Qe3 {[%emt 0:09:38]} Rfd8 {[%emt 0:07:51]} 17. a3 {[%emt 0:06:58]} cxd5 {[%emt 0:07:45]} 18. exd5 {[%emt 0:00:31]} Qd6 {[%emt 0:00:34]} 19. Rfe1 {[%emt 0:04:19]} Rac8 {[%emt 0:06:37]} 20. Bc4 {[%emt 0:07:20]} Bf5 {[%emt 0:04:51]} 21. Rc3 {[%emt 0:06:06]} (21. Qxe5 Qxe5 22. Rxe5 Bd3 $17) 21... f6 {[%emt 0:03:35]} 22. Rec1 {[%emt 0:01:45]} Bg6 {[%emt 0:03:13]} 23. h4 {[%emt 0:03:09]} f5 {[%emt 0:05:39]} (23... b6 $11 {keeps the balance.}) 24. Qa7 {[%emt 0:03:43]} b6 {[%emt 0:05:54]} 25. Be2 {[%emt 0:00:41]} (25. Bb3 $16 Ra8 26. Qb7) 25... Rxc3 {[%emt 0:02:04]} (25... Ra8 $1 $11 26. Qb7 Rab8) 26. Rxc3 $14 {[%emt 0:00:14] aiming for Rc7.} Bf7 $2 {[%emt 0:00:10]} (26... Be8 $1 $14) 27. Rc7 $18 {[%emt 0:01:50]} Qf6 {[%emt 0:01:45]} 28. d6 {[%emt 0:01:00]} h6 {[%emt 0:03:00]} (28... Kf8 $142 29. Qxb6 e4 30. Qxa5 Qxd6) 29. Rd7 $2 {[%emt 0:03:09]} ({Less strong is} 29. Qxb6 Rxd6 30. Qxa5 Kh7 $16) (29. d7 $18 {has better winning chances. Hoping for Rc8.} Kh7 30. Rc8) 29... Be6 $16 {[%emt 0:02:11] [#]} 30. Re7 $36 {[%emt 0:04:00][%mdl 2048] And now Qc7 would win. White has strong initiative. White is much more active.} Kh7 $2 {[%emt 0:01:32][%mdl 8192]} (30... Bd5 $16) 31. Qxb6 $18 {[%emt 0:00:45]} Rc8 {[%emt 0:01:02] [#] Strongly threatening ...Rc1+.} 32. Rc7 {[%emt 0:00:21] Against Rc1+} ({Wrong is} 32. Qxa5 $2 Rc1+ 33. Bf1 Bc4 $19) 32... Qd8 {[%emt 0:00:40]} (32... Rg8 33. d7 Qe7) 33. Qb7 {[%emt 0:01:24]} Qf8 {[%emt 0:00:29]} 34. Rxc8 {[%emt 0:01:46]} Bxc8 {[%emt 0:00:12][%mdl 4096] Endgame KQB-KQB} 35. Qc7 {[%emt 0:00:45]} Qe8 {[%emt 0:00:25] [#]} 36. Bb5 $1 {[%emt 0:00:23][%mdl 512] Prevents Qd7.} Qxb5 {[%emt 0:00:28]} (36... Qf8 37. d7) 37. Qxc8 {[%emt 0:00:07] White mates.} Qd3 {[%emt 0:00:54]} 38. d7 {[%emt 0:00:46]} Qe2 {[%emt 0:00:32]} 39. d8=Q {[%emt 0:01:04]} Qe1+ {[%emt 0:00:18]} 40. Kh2 {[%emt 0:00:06] Weighted Error Value: White=0.15 (very precise) /Black=0.63} 1-0